fUSD/lending_fUSD_20250426
["ID","MTS","AMOUNT","RATE_DAILY","PERIOD"]
[359063843,1745686246372,-207978.491503,0.00019894,2]
[359063844,1745686246382,-502.1,0.00019894,2]
[359063845,1745686246392,-14493.04887779,0.00019895,2]
[359063846,1745686246403,-275.02640054,0.00019895,2]
[359063847,1745686246414,-698.54,0.00019895,2]
[359063848,1745686246425,-400.0,0.00019895,2]
[359063849,1745686246435,-400.0,0.00019895,2]
[359063850,1745686246445,-400.0,0.00019895,2]
[359063851,1745686246455,-701.92,0.00019895,2]
[359063852,1745686246465,-533.3,0.00019895,2]
[359063853,1745686246477,-400.0,0.00019895,2]
[359063854,1745686246487,-12360.77,0.00019895,2]
[359063855,1745686246502,-500.0,0.00019895,2]
[359063856,1745686246513,-400.0,0.00019895,2]
[359063857,1745686246523,-1886.82,0.00019895,2]
[359063858,1745686246534,-832.72,0.00019895,2]
[359063859,1745686246544,-400.0,0.00019895,2]
[359063860,1745686246554,-5913.53,0.00019895,2]
[359063861,1745686246563,-400.0,0.00019895,2]
[359063862,1745686246576,-400.0,0.00019895,2]
[359063863,1745686246587,-400.0,0.00019895,2]
[359063864,1745686246598,-792.41,0.00019895,2]
[359063865,1745686246607,-833.51,0.00019895,2]
[359063866,1745686246617,-2264.42,0.00019895,2]
[359063867,1745686246627,-400.0,0.00019895,2]
[359063868,1745686246637,-424.51,0.00019895,2]
[359063869,1745686246646,-479.57,0.00019895,2]
[359063870,1745686246656,-400.0,0.00019895,2]
[359063871,1745686246666,-852.64,0.00019895,2]
[359063872,1745686246676,-400.0,0.00019895,2]
[359063873,1745686246686,-576.01,0.00019895,2]
[359063874,1745686246696,-749.17,0.00019895,2]
[359063875,1745686246706,-400.0,0.00019895,2]
[359063876,1745686246716,-400.0,0.00019895,2]
[359063877,1745686246726,-869.9,0.00019895,2]
[359063878,1745686246735,-400.0,0.00019895,2]
[359063879,1745686246745,-608.73,0.00019895,2]
[359063880,1745686246755,-743.36,0.00019895,2]
[359063881,1745686246765,-400.0,0.00019895,2]
[359063882,1745686246775,-3715.4,0.00019895,2]
[359063883,1745686246785,-400.0,0.00019895,2]
[359063884,1745686246794,-400.0,0.00019895,2]
[359063885,1745686246804,-400.0,0.00019895,2]
[359063886,1745686246813,-909.0,0.00019895,2]
[359063887,1745686246823,-643.1,0.00019895,2]
[359063888,1745686246832,-792.19,0.00019895,2]
[359063889,1745686246843,-425.93,0.00019895,2]
[359063890,1745686246852,-400.0,0.00019895,2]
[359063891,1745686246861,-400.0,0.00019895,2]
[359063892,1745686246871,-400.0,0.00019895,2]
[359063893,1745686246882,-712.92,0.00019895,2]
[359063894,1745686246892,-400.0,0.00019895,2]
[359063895,1745686246902,-209.84969339,0.00019896,2]
[359063896,1745686246911,-200.0,0.00019896,2]
[359063897,1745686246922,-509.13702663,0.00019896,2]
[359063898,1745686246933,-400.0,0.00019896,2]
[359063899,1745686246945,-400.0,0.00019896,2]
[359063900,1745686246957,-400.0,0.00019896,2]
[359063901,1745686246967,-400.0,0.00019896,2]
[359063902,1745686246977,-617.76,0.00019896,2]
[359063903,1745686246987,-1130.9,0.00019896,2]
[359063904,1745686246999,-629.79,0.00019896,2]
[359063905,1745686247010,-400.0,0.00019896,2]
[359063906,1745686247020,-1166.33,0.00019896,2]
[359063907,1745686247031,-1166.33,0.00019896,2]
[359063908,1745686247042,-464.01,0.00019896,2]
[359063909,1745686247054,-400.0,0.00019896,2]
[359063910,1745686247065,-816.2,0.00019896,2]
[359063911,1745686247076,-400.0,0.00019896,2]
[359063912,1745686247087,-925.79,0.00019896,2]
[359063913,1745686247098,-620.92,0.00019896,2]
[359063914,1745686247108,-960.77,0.00019896,2]
[359063915,1745686247119,-726.44,0.00019896,2]
[359063916,1745686247129,-657.84,0.00019896,2]
[359063917,1745686247140,-657.84,0.00019898,2]
[359063918,1745686247149,-400.0,0.00019899,2]
[359063919,1745686247162,-400.0,0.00019899,2]
[359063920,1745686247172,-742.28,0.00019899,2]
[359063921,1745686247182,-657.84,0.00019899,2]
[359063922,1745686247192,-155.96257902,0.00019899,2]
[359063923,1745686247201,-2775.55418849,0.000199,2]
[359063924,1745686247211,-319.44137543,0.000199,2]
[359063925,1745686247221,-2257.27692524,0.000199,2]
[359063926,1745686247231,-1203.10918329,0.000199,2]
[359063927,1745686247240,-179.66483768,0.000199,2]
[359063928,1745686247250,-500.0,0.00019922,2]
[359063929,1745686247260,-150.0,0.00019922,2]
[359063930,1745686247271,-177.18528437,0.00019922,2]
[359063931,1745686247281,-500.0,0.00019922,2]
[359063932,1745686247291,-2360.0,0.00019922,2]
[359063933,1745686247300,-500.0,0.00019922,2]
[359063934,1745686247309,-500.0,0.00019922,2]
[359063935,1745686247319,-150.0,0.00019922,2]
[359063936,1745686247328,-500.0,0.00019922,2]
[359063937,1745686247337,-500.0,0.00019922,2]
[359063938,1745686247347,-150.0,0.00019922,2]
[359063939,1745686247357,-150.0,0.00019922,2]
[359063940,1745686247367,-150.0,0.00019922,2]
[359063941,1745686247378,-500.0,0.00019922,2]
[359063942,1745686247389,-150.0,0.00019922,2]
[359063943,1745686247399,-500.0,0.00019922,2]
[359063944,1745686247409,-608.92069253,0.00019922,2]
[359063945,1745686247420,-442.0,0.00019922,2]
[359063946,1745686247431,-500.0,0.00019922,2]
[359063947,1745686247441,-150.0,0.0001995,2]
[359063948,1745686247450,-150.0,0.0001995,2]
[359063949,1745686247460,-500.0,0.0001995,2]
[359063950,1745686247471,-2360.0,0.0001995,2]
[359063951,1745686247481,-500.0,0.0001995,2]
[359063952,1745686247491,-500.0,0.0001995,2]
[359063953,1745686247505,-277.27421446,0.0001995,2]
[359063954,1745686247515,-500.0,0.0001995,2]
[359063955,1745686247525,-500.0,0.0001995,2]
[359063956,1745686247535,-233.51134533,0.0001995,2]
[359063957,1745686247545,-240.0110271,0.0001995,2]
[359063958,1745686247554,-154.28711873,0.0001995,2]
[359063959,1745686247564,-500.0,0.0001995,2]
[359063960,1745686247576,-150.0,0.0001995,2]
[359063961,1745686247586,-500.0,0.0001995,2]
[359063962,1745686247596,-442.0,0.0001995,2]
[359063963,1745686247606,-500.0,0.0001995,2]
[359063964,1745686247616,-1166.33,0.00019965,2]
[359063965,1745686247627,-500.0,0.00019973,2]
[359063966,1745686247637,-500.0,0.00019973,2]
[359063967,1745686247647,-500.0,0.00019973,2]
[359063968,1745686247657,-2667.0,0.00019973,2]
[359063969,1745686247667,-6937.0,0.00019973,2]
[359063970,1745686247678,-500.0,0.00019973,2]
[359063971,1745686247688,-500.0,0.00019973,2]
[359063972,1745686247698,-500.0,0.00019973,2]
[359063973,1745686247708,-511.00318909,0.00019973,2]
[359063974,1745686247718,-500.0,0.00019973,2]
[359063975,1745686247728,-500.0,0.00019973,2]
[359063976,1745686247738,-505.51795203,0.00019973,2]
[359063977,1745686247748,-153.24179358,0.00019973,2]
[359063978,1745686247757,-500.0,0.00019973,2]
[359063979,1745686247767,-500.0,0.00019973,2]
[359063980,1745686247777,-500.0,0.00019973,2]
[359063981,1745686247788,-500.0,0.00019973,2]
[359063982,1745686247798,-500.0,0.00019973,2]
[359063983,1745686247809,-500.0,0.00019973,2]
[359063984,1745686247820,-500.0,0.00019973,2]
[359063985,1745686247831,-500.0,0.00019973,2]
[359063986,1745686247841,-500.0,0.00019973,2]
[359063987,1745686247852,-500.0,0.00019973,2]
[359063988,1745686247863,-160.11472219,0.00019973,2]
[359063989,1745686247874,-174.53826606,0.00019973,2]
[359063990,1745686247884,-514.7327358,0.00019973,2]
[359063991,1745686247894,-500.0,0.00019973,2]
[359063992,1745686247904,-500.0,0.00019973,2]
[359063993,1745686247914,-200.0,0.00019977,2]
[359063994,1745686247924,-500.0,0.00019977,2]
[359063995,1745686247934,-2360.0,0.00019977,2]
[359063996,1745686247944,-500.0,0.00019977,2]
[359063997,1745686247956,-500.0,0.00019977,2]
[359063998,1745686247966,-150.0,0.00019977,2]
[359063999,1745686247976,-463.27980547,0.00019977,2]
[359064000,1745686247987,-150.0,0.00019977,2]
[359064001,1745686247997,-164.34432765,0.00019977,2]
[359064002,1745686248007,-442.0,0.00019977,2]
[359064003,1745686248017,-500.0,0.00019977,2]
[359064004,1745686248027,-1839.682,0.00019981,2]
[359064005,1745686248037,-178.287,0.00019981,2]
[359064006,1745686248047,-1203.10918329,0.00019984,2]
[359064007,1745686248056,-588.54,0.00019985,2]
[359064008,1745686248066,-14990.449022,0.00019986,2]
[359064009,1745686248076,-105521.0173561,0.00019986,2]
[359064010,1745686248086,-6554.1250965,0.00019986,2]
[359064011,1745686248096,-1142.12679218,0.0001999,2]
[359064012,1745686248106,-32907.909847,0.0001999,2]
[359064013,1745686248116,-1142.12679218,0.0001999,2]
[359064014,1745686248126,-1142.12679218,0.0001999,2]
[359064015,1745686248136,-1350.8,0.00019998,2]
[359064016,1745686248145,-1350.8,0.00019998,2]
[359064017,1745686248156,-1350.8,0.00019998,2]
[359064018,1745686248166,-1350.8,0.00019998,2]
[359064019,1745686248177,-1350.8,0.00019998,2]
[359064020,1745686248188,-1350.8,0.00019998,2]
[359064021,1745686248199,-1350.8,0.00019998,2]
[359064022,1745686248209,-1350.8,0.00019998,2]
[359064023,1745686248218,-1350.8,0.00019998,2]
[359064024,1745686248228,-1350.8,0.00019998,2]
[359064025,1745686248238,-1350.8,0.00019998,2]
[359064026,1745686248248,-1350.8,0.00019998,2]
[359064027,1745686248257,-1350.8,0.00019998,2]
[359064028,1745686248267,-1350.8,0.00019998,2]
[359064029,1745686248277,-1350.8,0.00019998,2]
[359064030,1745686248287,-1350.8,0.00019998,2]
[359064031,1745686248298,-1350.8,0.00019998,2]
[359064032,1745686248314,-1350.8,0.00019998,2]
[359064033,1745686248325,-1350.8,0.00019998,2]
[359064034,1745686248337,-1350.8,0.00019998,2]
[359064035,1745686248347,-1350.8,0.00019998,2]
[359064036,1745686248358,-1350.8,0.00019998,2]
[359064037,1745686248369,-1350.8,0.00019998,2]
[359064038,1745686248380,-1350.91423895,0.00019998,2]
[359064039,1745686248390,-1166.33,0.00019998,2]
[359064040,1745686248401,-657.84,0.00019998,2]
[359064041,1745686248412,-500.0,0.00019999,2]
[359064042,1745686248422,-500.0,0.00019999,2]
[359064043,1745686248433,-300.0,0.00019999,2]
[359064044,1745686248444,-300.0,0.00019999,2]
[359064045,1745686248455,-500.0,0.00019999,2]
[359064046,1745686248466,-300.0,0.00019999,2]
[359064047,1745686248477,-500.0,0.00019999,2]
[359064048,1745686248487,-500.0,0.00019999,2]
[359064049,1745686248502,-152.1287992,0.00019999,2]
[359064050,1745686248512,-1166.33,0.00019999,2]
[359064051,1745686248523,-1166.33,0.00019999,2]
[359064052,1745686248535,-1166.33,0.00019999,2]
[359064053,1745686248545,-1166.33,0.00019999,2]
[359064054,1745686248556,-1166.33,0.00019999,2]
[359064055,1745686248567,-1166.33,0.00019999,2]
[359064056,1745686248578,-1166.33,0.00019999,2]
[359064057,1745686248589,-1166.33,0.00019999,2]
[359064058,1745686248600,-1166.33,0.00019999,2]
[359064059,1745686248610,-1166.33,0.00019999,2]
[359064060,1745686248621,-1166.33,0.00019999,2]
[359064061,1745686248631,-1166.33,0.00019999,2]
[359064062,1745686248642,-1166.33,0.00019999,2]
[359064063,1745686248653,-1166.33,0.00019999,2]
[359064064,1745686248665,-1166.33,0.00019999,2]
[359064065,1745686248675,-1166.33,0.00019999,2]
[359064066,1745686248686,-1166.33,0.00019999,2]
[359064067,1745686248697,-1166.33,0.00019999,2]
[359064068,1745686248708,-1166.33,0.00019999,2]
[359064069,1745686248719,-1166.47618555,0.00019999,2]
[359064070,1745686248730,-283.23024813,0.00019999,2]
[359064071,1745686248740,-588.54,0.00019999,2]
[359064072,1745686248757,-588.54,0.00019999,2]
[359064073,1745686248768,-588.54,0.00019999,2]
[359064074,1745686248779,-588.54,0.00019999,2]
[359064075,1745686248789,-588.54,0.00019999,2]
[359064076,1745686248800,-588.54,0.00019999,2]
[359064077,1745686248812,-588.54,0.00019999,2]
[359064078,1745686248822,-588.54,0.00019999,2]
[359064079,1745686248834,-588.54,0.00019999,2]
[359064080,1745686248844,-588.54,0.00019999,2]
[359064081,1745686248854,-588.54,0.00019999,2]
[359064082,1745686248865,-588.54,0.00019999,2]
[359064083,1745686248878,-588.54,0.00019999,2]
[359064084,1745686248888,-588.54,0.00019999,2]
[359064085,1745686248898,-588.54,0.00019999,2]
[359064086,1745686248910,-588.54,0.00019999,2]
[359064087,1745686248922,-588.54,0.00019999,2]
[359064088,1745686248932,-588.54,0.00019999,2]
[359064089,1745686248943,-588.54,0.00019999,2]
[359064090,1745686248953,-588.54,0.00019999,2]
[359064091,1745686248964,-588.71,0.00019999,2]
[359064092,1745686248975,-1112.70310987,0.00019999,2]
[359064093,1745686248986,-657.84,0.00019999,2]
[359064094,1745686248998,-657.84,0.00019999,2]
[359064095,1745686249010,-657.84,0.00019999,2]
[359064096,1745686249021,-657.84,0.00019999,2]
[359064097,1745686249032,-657.84,0.00019999,2]
[359064098,1745686249042,-657.84,0.00019999,2]
[359064099,1745686249053,-657.84,0.00019999,2]
[359064100,1745686249064,-657.84,0.00019999,2]
[359064101,1745686249074,-657.84,0.00019999,2]
[359064102,1745686249085,-657.84,0.00019999,2]
[359064103,1745686249095,-657.84,0.00019999,2]
[359064104,1745686249106,-657.84,0.00019999,2]
[359064105,1745686249120,-657.84,0.00019999,2]
[359064106,1745686249134,-657.84,0.00019999,2]
[359064107,1745686249144,-657.84,0.00019999,2]
[359064108,1745686249155,-657.84,0.00019999,2]
[359064109,1745686249167,-657.84,0.00019999,2]
[359064110,1745686249177,-657.84,0.00019999,2]
[359064111,1745686249189,-657.86921698,0.00019999,2]
[359064112,1745686249199,-852.0,0.00019999,2]
[359064113,1745686249210,-665173.57908325,0.0002,2]
[359064114,1745686249221,-226.20042069,0.0002,2]
[359064115,1745686249232,-3000.0,0.0002,2]
[359064116,1745686249244,-2646192.07933496,0.0002,2]
[359064117,1745686249255,-10000.0,0.0002,2]
[359064118,1745686249266,-15000.0,0.0002,2]
[359064119,1745686249276,-150.0,0.0002,2]
[359064120,1745686249286,-569.36870002,0.0002,2]
[359064121,1745686249297,-1150.01,0.0002,2]
[359064122,1745686249308,-150.0,0.0002,2]
[359064123,1745686249318,-150.0,0.0002,2]
[359064124,1745686249329,-150.0,0.0002,2]
[359064125,1745686249340,-265.02964783,0.0002,2]
[359064126,1745686249350,-150.0,0.0002,2]
[359064127,1745686249361,-898.52094072,0.0002,2]
[359064128,1745686249373,-1338.23399658,0.0002,2]
[359064129,1745686249384,-150.0,0.0002,2]
[359064130,1745686249395,-1814.24623158,0.0002,2]
[359064131,1745686249406,-1232228.99451818,0.0002,2]
[359064132,1745686250304,-400.0,0.00019895,2]
[359064133,1745686250316,-215.65114864,0.0002,2]
[359064134,1745686251129,-400.0,0.00019895,2]
[359064135,1745686251140,-470.77097418,0.0002,2]
[359064136,1745686251154,-636.28478661,0.0002,2]
[359064137,1745686251254,-1913.18325018,0.0002,2]
[359064138,1745686251267,-598.74418113,0.0002,2]
[359064139,1745686251284,-7426.85236178,0.0002,2]
[359064140,1745686251299,-640.07658809,0.0002,2]
[359064141,1745686312884,5900.0,0.00019088,2]
[359064142,1745686388391,1986.84696034,0.00019,2]
[359064143,1745686426836,15981.91,0.00019075,2]
[359064146,1745686637705,4000.0,0.00018939,2]
[359064147,1745686686487,1652.01,0.00018927,2]
[359064148,1745686807963,799.378959,7.945e-05,2]
[359064149,1745686827884,201.859,0.00018795,2]
[359064150,1745686829439,1951106.73005389,0.00037808,60]
[359064151,1745686829541,257.141,0.00018795,2]
[359064152,1745686833782,872.0,0.00018795,2]
[359064153,1745686840085,920.0,0.00018795,2]
[359064154,1745686904174,565.16,0.00016968,2]
[359064155,1745686904381,565.16,0.00019232,2]
[359064156,1745686914946,1000.0,0.00018892,2]
[359064157,1745686981890,155.21,0.00018849,2]
[359064158,1745687033811,150.74,0.00027425,30]
[359064164,1745687223762,-158.36508478,0.00019405,2]
[359064175,1745687267324,632.87,0.00018831,2]
[359064192,1745687431948,-8.29491522,0.00019405,2]
[359064193,1745687431958,-250.0,0.00019593,2]
[359064194,1745687431968,-316.30508478,0.00019709,2]
[359064195,1745687432004,-13919.43384533,0.00019709,2]
[359064196,1745687432216,-11624.11,0.00019709,2]
[359064273,1745687437834,-44877.62131127,0.00019709,2]
[359064275,1745687437844,-2730.59282273,0.00019713,2]
[359064277,1745687437854,-2464.19985046,0.0001972,2]
[359064278,1745687437864,-2765.20849097,0.00019724,2]
[359064279,1745687437873,-2464.19985046,0.00019735,2]
[359064280,1745687437884,-2730.59282273,0.0001977,2]
[359064281,1745687437894,-70737.47024138,0.00019771,2]
[359064282,1745687437905,-2765.20849097,0.00019775,2]
[359064283,1745687437915,-1200.0,0.00019781,2]
[359064284,1745687437925,-300.0,0.00019781,2]
[359064285,1745687437934,-8622.6613,0.00019782,2]
[359064286,1745687437944,-17313.1009,0.00019782,2]
[359064287,1745687437953,-413.22716121,0.00019782,2]
[359064288,1745687437964,-3082.0271741,0.00019782,2]
[359064289,1745687437974,-413.22716115,0.00019782,2]
[359064290,1745687437985,-413.22716115,0.00019783,2]
[359064291,1745687437999,-413.22716115,0.00019783,2]
[359064292,1745687438010,-413.22716115,0.00019784,2]
[359064293,1745687438020,-413.22716115,0.00019784,2]
[359064294,1745687438030,-413.22716115,0.00019785,2]
[359064295,1745687438043,-2500.0,0.00019785,2]
[359064296,1745687438052,-551.0,0.00019785,2]
[359064297,1745687438064,-155.96257904,0.00019785,2]
[359064298,1745687438073,-413.22716115,0.00019785,2]
[359064299,1745687438084,-155.96257902,0.00019786,2]
[359064300,1745687438094,-413.22716115,0.00019786,2]
[359064301,1745687438106,-168.56609644,0.00019786,2]
[359064302,1745687438119,-442.59416212,0.00019786,2]
[359064303,1745687438128,-1203.10918329,0.00019786,2]
[359064304,1745687438138,-155.96257902,0.00019786,2]
[359064305,1745687438148,-5065.9163801,0.00019786,2]
[359064306,1745687438158,-413.22716115,0.00019786,2]
[359064308,1745687438168,-200.0,0.00019786,2]
[359064310,1745687438177,-200.0,0.00019787,2]
[359064312,1745687438187,-419.3695189,0.00019793,2]
[359064314,1745687438197,-319.44137543,0.00019794,2]
[359064316,1745687438206,-419.36951886,0.00019811,2]
[359064317,1745687438215,-419.36951886,0.00019829,2]
[359064319,1745687438225,-168.56609644,0.00019843,2]
[359064321,1745687438234,-442.59416212,0.00019843,2]
[359064322,1745687438243,-1203.10918329,0.00019843,2]
[359064323,1745687438253,-5065.91638009,0.00019843,2]
[359064324,1745687438262,-419.36951886,0.00019847,2]
[359064326,1745687438271,-2667.0,0.00019863,2]
[359064327,1745687438280,-419.36951886,0.00019864,2]
[359064328,1745687438291,-500.70859374,0.00019873,2]
[359064329,1745687438300,-156.0410057,0.00019873,2]
[359064330,1745687438309,-207.41364614,0.00019873,2]
[359064331,1745687438318,-151.0,0.00019874,2]
[359064333,1745687438327,-207.4,0.00019874,2]
[359064334,1745687438336,-260.2,0.00019875,2]
[359064335,1745687438345,-260.2,0.00019875,2]
[359064336,1745687438355,-260.2,0.00019875,2]
[359064337,1745687438364,-260.2,0.00019875,2]
[359064338,1745687438374,-260.2,0.00019875,2]
[359064339,1745687438383,-260.2,0.00019875,2]
[359064340,1745687438393,-260.2,0.00019875,2]
[359064341,1745687438402,-1211.89238905,0.00019876,2]
[359064342,1745687438411,-1211.89238905,0.00019876,2]
[359064343,1745687438420,-1211.89238905,0.00019876,2]
[359064344,1745687438430,-796.0,0.0001988,2]
[359064345,1745687438439,-1287.0,0.0001988,2]
[359064346,1745687438449,-1446.0,0.0001988,2]
[359064347,1745687438458,-2063.0,0.0001988,2]
[359064348,1745687438468,-579.0,0.0001988,2]
[359064349,1745687438477,-548.0,0.0001988,2]
[359064350,1745687438487,-911.0,0.0001988,2]
[359064351,1745687438497,-195.37153704,0.00019881,2]
[359064352,1745687438506,-436.65896821,0.00019881,2]
[359064353,1745687438515,-400.0,0.00019881,2]
[359064354,1745687438525,-443.26,0.00019881,2]
[359064355,1745687438534,-400.0,0.00019881,2]
[359064356,1745687438543,-618.3,0.00019881,2]
[359064357,1745687438553,-664.74,0.00019881,2]
[359064358,1745687438562,-400.0,0.00019881,2]
[359064359,1745687438572,-400.0,0.00019881,2]
[359064360,1745687438582,-860.22,0.00019881,2]
[359064361,1745687438591,-964.01,0.00019881,2]
[359064362,1745687438601,-400.0,0.00019881,2]
[359064363,1745687438610,-658.9,0.00019881,2]
[359064364,1745687438620,-578.45,0.00019881,2]
[359064365,1745687438630,-787.5,0.00019881,2]
[359064366,1745687438639,-509.99,0.00019881,2]
[359064367,1745687438649,-778.78,0.00019881,2]
[359064368,1745687438658,-1239.55,0.00019881,2]
[359064369,1745687438956,-773.03,0.00019881,2]
[359064370,1745687438967,-634.4,0.00019881,2]
[359064371,1745687438977,-518.62,0.00019881,2]
[359064372,1745687438987,-400.0,0.00019881,2]
[359064373,1745687439000,-8507.51,0.00019881,2]
[359064374,1745687439010,-400.0,0.00019881,2]
[359064375,1745687439019,-569.28,0.00019881,2]
[359064376,1745687439029,-400.0,0.00019881,2]
[359064377,1745687439039,-542.73,0.00019881,2]
[359064378,1745687439048,-496.17,0.00019881,2]
[359064379,1745687439058,-400.0,0.00019881,2]
[359064380,1745687439069,-400.0,0.00019881,2]
[359064381,1745687439078,-688.84,0.00019881,2]
[359064382,1745687439088,-400.0,0.00019881,2]
[359064383,1745687439099,-705.49,0.00019881,2]
[359064384,1745687439109,-400.0,0.00019881,2]
[359064385,1745687439118,-548.14,0.00019881,2]
[359064386,1745687439128,-400.0,0.00019881,2]
[359064387,1745687439139,-868.83,0.00019881,2]
[359064388,1745687439149,-400.0,0.00019881,2]
[359064389,1745687439159,-4077.894081,0.00019881,2]
[359064390,1745687439168,-497.55,0.00019881,2]
[359064391,1745687439179,-254412.81675657,0.00019882,2]
[359064392,1745687439194,-225991.22634249,0.00019882,2]
[359064393,1745687439204,-419.36951886,0.00019882,2]
[359064394,1745687439214,-400.0,0.00019884,2]
[359064395,1745687439223,-156.655325,0.00019884,2]
[359064396,1745687439233,-2952.72,0.00019884,2]
[359064397,1745687439243,-1015.28,0.00019884,2]
[359064398,1745687439252,-539.84,0.00019884,2]
[359064399,1745687439261,-425.12,0.00019884,2]
[359064400,1745687439271,-400.0,0.00019884,2]
[359064401,1745687439281,-464.25,0.00019884,2]
[359064402,1745687439291,-158.931182,0.00019884,2]
[359064403,1745687439300,-542.67,0.00019884,2]
[359064404,1745687439309,-438.46,0.00019884,2]
[359064405,1745687439318,-479.38,0.00019884,2]
[359064406,1745687439328,-3506.7,0.00019884,2]
[359064407,1745687439337,-400.0,0.00019884,2]
[359064408,1745687439346,-400.0,0.00019884,2]
[359064409,1745687439355,-864.03,0.00019884,2]
[359064410,1745687439365,-400.0,0.00019884,2]
[359064411,1745687439375,-547.26,0.00019884,2]
[359064412,1745687439384,-441.31,0.00019884,2]
[359064413,1745687439393,-400.0,0.00019884,2]
[359064414,1745687439403,-400.0,0.00019884,2]
[359064415,1745687439412,-420.76,0.00019884,2]
[359064416,1745687439422,-400.0,0.00019884,2]
[359064417,1745687439431,-400.0,0.00019884,2]
[359064418,1745687439440,-799.53,0.00019884,2]
[359064419,1745687439450,-668.21,0.00019884,2]
[359064420,1745687439459,-683.36,0.00019884,2]
[359064421,1745687439469,-783.8,0.00019884,2]
[359064422,1745687439479,-604.29,0.00019884,2]
[359064423,1745687439488,-400.0,0.00019884,2]
[359064424,1745687439498,-573.22,0.00019884,2]
[359064425,1745687439507,-400.0,0.00019884,2]
[359064426,1745687439516,-1000.0,0.00019885,2]
[359064427,1745687439526,-1000.0,0.00019885,2]
[359064428,1745687439537,-178.287,0.00019885,2]
[359064429,1745687439546,-2190.097,0.00019885,2]
[359064430,1745687439556,-400.0,0.00019885,2]
[359064431,1745687439566,-440.36327815,0.00019885,2]
[359064432,1745687439576,-400.0,0.00019885,2]
[359064433,1745687439586,-400.0,0.00019885,2]
[359064434,1745687439596,-400.0,0.00019885,2]
[359064435,1745687439607,-400.0,0.00019885,2]
[359064436,1745687439617,-400.0,0.00019885,2]
[359064437,1745687439626,-400.0,0.00019885,2]
[359064438,1745687439636,-926.56,0.00019885,2]
[359064439,1745687439646,-400.0,0.00019885,2]
[359064440,1745687439655,-400.0,0.00019885,2]
[359064441,1745687439664,-400.0,0.00019885,2]
[359064442,1745687439674,-638.48,0.00019885,2]
[359064443,1745687439683,-400.0,0.00019885,2]
[359064444,1745687439692,-400.0,0.00019885,2]
[359064445,1745687439701,-400.0,0.00019885,2]
[359064446,1745687439711,-400.0,0.00019885,2]
[359064447,1745687439720,-825.61,0.00019885,2]
[359064448,1745687439729,-400.0,0.00019885,2]
[359064449,1745687439738,-662.11,0.00019885,2]
[359064450,1745687439748,-538.48345848,0.00019885,2]
[359064451,1745687439757,-400.0,0.00019885,2]
[359064452,1745687439766,-400.0,0.00019885,2]
[359064453,1745687439776,-400.0,0.00019885,2]
[359064454,1745687439785,-235.23510978,0.00019885,2]
[359064455,1745687439795,-400.0,0.00019885,2]
[359064456,1745687439804,-205.76331068,0.00019885,2]
[359064457,1745687439815,-400.0,0.00019885,2]
[359064458,1745687439824,-400.0,0.00019885,2]
[359064459,1745687439833,-200.0,0.00019885,2]
[359064460,1745687439842,-400.0,0.00019885,2]
[359064461,1745687439852,-408.61,0.00019885,2]
[359064462,1745687439861,-400.0,0.00019885,2]